bitfinex/quotes_SOLUSD_20250129
["timestamp","ask_amount","ask_price","bid_price","bid_amount"]
[1738157418747,0.12549,226.3,226.25,12.8842904]
[1738157420029,0.12549,226.3,226.23,12.8842904]
[1738157420235,0.25098,226.3,226.21,12.8842904]
[1738157420444,0.12549,226.28,226.21,12.8842904]
[1738157420845,0.25098,226.28,226.21,12.8842904]
[1738157421053,0.25098,226.28,226.2,1.041]
[1738157422736,0.12549,226.28,226.21,12.8842904]
[1738157423036,12.8842904,226.31,226.23,12.8842904]
[1738157423339,0.12549,226.3,226.23,12.8842904]
[1738157424557,13.1352704,226.33,226.25,12.8842904]
[1738157425350,13.1352704,226.33,226.23,12.8842904]
[1738157426268,12.8842904,226.29,226.21,12.8842904]
[1738157426670,0.12549,226.25,226.2,1.041]
[1738157426961,0.12549,226.25,226.19,12.8842904]
[1738157427574,0.12549,226.23,226.19,12.8842904]
[1738157428154,20.0,226.24,226.18,52.48]
[1738157428155,24.027864,226.24,226.18,52.48]
[1738157428769,20.0,226.24,226.19,12.8842904]
[1738157429043,1.659,226.36,226.18,52.48]
[1738157429261,12.8842904,226.32,226.24,12.8842904]
[1738157429546,0.12549,226.31,226.24,17.3042904]
[1738157429854,0.12549,226.34,226.26,12.8842904]
[1738157429855,13.0097804,226.34,226.26,12.8842904]
[1738157430055,0.12549,226.33,226.26,12.8842904]
[1738157430462,0.18849,226.33,226.26,12.8842904]
[1738157430676,0.063,226.33,226.28,12.8842904]
[1738157430886,0.063,226.33,226.3,12.8842904]
[1738157432679,0.12549,226.32,226.25,14.4292904]
[1738157432971,0.12549,226.32,226.21,6.5644]
[1738157432972,0.12549,226.28,226.21,19.4486904]
[1738157433680,12.8842904,226.29,226.21,19.26709704]
[1738157433856,0.12549,226.28,226.21,12.8842904]
[1738157435987,12.8842904,226.31,226.23,12.8842904]
[1738157436271,12.9472904,226.33,226.25,12.8842904]
[1738157436449,0.12549,226.32,226.25,12.8842904]
[1738157437452,0.063,226.33,226.27,12.8842904]
[1738157437660,0.063,226.33,226.27,17.3036904]
[1738157439079,0.063,226.33,226.29,12.8842904]
[1738157439270,0.063,226.33,226.31,12.8842904]
[1738157440086,0.063,226.33,226.29,5.9304]
[1738157440087,0.063,226.33,226.29,18.8146904]
[1738157442061,0.063,226.33,226.29,14.3957904]
[1738157442464,0.12549,226.31,226.23,14.4793904]
[1738157442679,0.12549,226.31,226.27,0.03]
[1738157442976,0.12549,226.29,226.27,0.03]
[1738157443181,12.8842904,226.28,226.27,0.03]
[1738157443370,12.8842904,226.32,226.27,0.03]
[1738157445689,0.12549,226.31,226.27,0.03]
[1738157455408,0.063,226.33,226.27,0.03]
[1738157455792,0.063,226.33,226.28,12.8842904]
[1738157456693,0.063,226.33,226.28,17.3034904]
[1738157456998,0.063,226.33,226.28,18.9114904]
[1738157458679,0.12549,226.31,226.28,1.608]
[1738157458897,0.12549,226.31,226.27,0.03]
[1738157459307,0.063,226.33,226.27,4.4494]
[1738157459676,0.18849,226.33,226.28,12.8842904]
[1738157460276,0.18849,226.33,226.27,0.03]
[1738157460481,0.12549,226.31,226.27,0.03]
[1738157461717,32.8842904,226.28,226.27,0.03]
[1738157462201,57.0376444,226.28,226.27,0.03]
[1738157465203,33.2607604,226.28,226.27,0.03]
[1738157465580,33.1352704,226.28,226.27,0.03]
[1738157465791,0.12549,226.28,226.27,0.03]
[1738157467406,13.0097804,226.28,226.27,0.03]
[1738157467606,13.0727804,226.28,226.27,0.03]
[1738157468503,0.18849,226.28,226.27,0.03]
[1738157468687,0.063,226.28,226.27,0.03]
[1738157470684,0.063,226.28,226.27,12.9142904]
[1738157470890,0.063,226.28,226.27,0.03]
[1738157472821,0.18849,226.28,226.27,0.03]
[1738157475892,24.216354,226.28,226.27,0.03]
[1738157476910,0.18849,226.28,226.27,0.03]
[1738157477123,0.063,226.28,226.27,0.03]
[1738157477495,0.063,226.28,226.27,12.9142904]
[1738157477825,0.063,226.28,226.27,14.5642904]
[1738157477993,0.063,226.33,226.28,1.0]
[1738157478197,0.063,226.33,226.32,12.8842904]
[1738157478907,0.063,226.33,226.27,14.5642904]
[1738157479517,0.063,226.33,226.27,18.9836904]
[1738157480136,0.063,226.28,226.27,1.68]
[1738157480297,0.063,226.28,226.27,0.03]
[1738157480493,0.31398,226.28,226.27,0.03]
[1738157480912,24.216354,226.28,226.27,0.03]
[1738157481113,24.341844,226.28,226.27,0.03]
[1738157482201,0.31398,226.28,226.27,0.03]
[1738157482920,24.216354,226.28,226.27,0.03]
[1738157483426,0.18849,226.28,226.27,0.03]
[1738157483918,20.18849,226.28,226.27,0.03]
[1738157484120,0.18849,226.28,226.27,0.03]
[1738157484502,0.063,226.28,226.27,0.03]
[1738157484702,0.063,226.28,226.27,1.5503]
[1738157485706,0.063,226.33,226.27,39.3369644]
[1738157486014,0.063,226.33,226.32,17.3027904]
[1738157487199,0.063,226.33,226.32,42.2051644]
[1738157487403,0.063,226.42,226.33,23.902374]
[1738157487627,0.063,226.42,226.38,12.8842904]
[1738157488028,0.063,226.42,226.36,12.8842904]
[1738157488613,0.063,226.42,226.28,0.12549]
[1738157488614,0.063,226.42,226.35,20.61684068]
[1738157489332,0.063,226.42,226.37,20.61684068]
[1738157490029,0.063,226.42,226.38,1.6552]
[1738157491028,0.063,226.42,226.39,20.61684068]
[1738157492128,0.063,226.42,226.4,4.4169]
[1738157492527,0.063,226.42,226.41,20.61684068]
[1738157494313,0.063,226.44,226.42,4.4165]
[1738157494643,0.063,226.44,226.4,20.61684068]
[1738157494849,0.063,226.44,226.42,20.61684068]
[1738157495156,0.063,226.44,226.43,20.61684068]
[1738157496916,0.063,226.44,226.43,44.51921468]
[1738157499436,0.063,226.44,226.43,48.93551468]
[1738157500141,0.063,226.44,226.43,25.03314068]
[1738157500944,0.063,226.44,226.43,20.61684068]
[1738157501130,0.063,226.44,226.41,20.61684068]
[1738157501446,0.063,226.44,226.43,20.61684068]
[1738157501748,0.063,226.44,226.42,20.61684068]
[1738157502447,0.063,226.44,226.42,25.03334068]
[1738157503265,0.063,226.44,226.43,20.61684068]
[1738157503433,0.063,226.5,226.44,0.12549]
[1738157503743,0.063,226.5,226.49,20.61684068]
[1738157503943,0.063,226.5,226.47,20.61684068]
[1738157504252,0.063,226.5,226.43,20.61684068]
[1738157504253,0.18849,226.5,226.43,20.61684068]
[1738157504555,0.063,226.5,226.46,20.61684068]
[1738157504760,0.063,226.5,226.49,20.61684068]
[1738157505858,0.063,226.5,226.49,25.03204068]
[1738157507163,0.063,226.5,226.49,49.37579903]
[1738157507323,0.063,226.5,226.49,104.42361971]
[1738157507523,0.063,226.5,226.49,103.98223536]
[1738157508358,0.063,226.51,226.5,28.442864]
[1738157508536,0.063,226.51,226.5,41.74423418]
[1738157509429,0.063,226.64,226.6,0.25098]
[1738157509729,0.063,226.64,226.63,50.329574]
[1738157509941,0.063,226.64,226.63,63.18966152]
[1738157510141,0.063,226.64,226.63,63.31515152]
[1738157510539,0.063,226.64,226.63,67.85304152]
[1738157510836,1.0368,226.83,226.63,67.85304152]
[1738157510837,19.26718752,226.83,226.68,1.12549]
[1738157511036,0.0001,226.7,226.69,37.45437685]
[1738157511655,0.0001,226.7,226.69,37.01344152]
[1738157511951,0.063,226.85,226.71,0.12549]
[1738157511952,0.12549,226.82,226.71,0.12549]
[1738157512157,0.12549,226.82,226.72,4.4107]
[1738157512357,0.12549,226.82,226.76,12.86008752]
[1738157512553,20.54246389,226.84,226.76,20.54246389]
[1738157512859,0.063,226.85,226.7,0.12549]
[1738157512860,0.12549,226.77,226.7,20.54246389]
[1738157513349,0.18849,226.85,226.76,20.54246389]
[1738157513350,20.54246389,226.83,226.76,20.54246389]
[1738157513845,0.12549,226.82,226.76,20.54246389]
[1738157514036,0.12549,226.82,226.78,20.54246389]
[1738157514242,0.063,226.85,226.8,20.54246389]
[1738157514644,0.063,226.85,226.82,20.54246389]
[1738157516434,0.063,226.85,226.84,20.54246389]
[1738157519461,0.063,226.85,226.84,22.19966389]
[1738157519961,0.063,226.85,226.84,26.60796389]
[1738157520455,0.063,226.85,226.84,22.19966389]
[1738157521342,0.063,226.85,226.84,50.63582789]
[1738157521848,0.063,226.85,226.84,26.60796389]
[1738157522043,0.063,226.85,226.84,20.54246389]
[1738157522250,20.60546389,226.85,226.8,3.2]
[1738157522645,0.063,226.85,226.81,20.54246389]
[1738157523455,0.063,226.85,226.83,20.54246389]
[1738157523758,0.063,226.93,226.89,0.12549]
[1738157523973,0.063,226.93,226.9,20.54246389]
[1738157524178,0.063,226.93,226.88,20.54246389]
[1738157524345,0.063,226.93,226.89,20.54246389]
[1738157524652,0.063,226.93,226.92,20.54246389]
[1738157525035,0.063,226.93,226.92,44.44483789]
[1738157525237,0.063,226.93,226.92,46.10002789]
[1738157525847,0.063,226.93,226.92,50.50682789]
[1738157527062,0.063,226.93,226.92,26.47896389]
[1738157527365,0.063,226.93,226.88,24.94986389]
[1738157527587,0.063,226.93,226.92,20.54246389]
[1738157528375,0.063,226.93,226.91,20.54246389]
[1738157528583,0.063,226.93,226.89,20.54246389]
[1738157528763,20.73095389,226.93,226.81,0.063]
[1738157528939,20.73095389,226.93,226.83,20.0]
[1738157529141,0.063,226.93,226.92,0.12549]
[1738157529341,0.063,226.93,226.82,45.4306]
[1738157529765,0.063,226.93,226.85,20.0]
[1738157530218,0.063,226.93,226.9,20.54246389]
[1738157530344,20.54246389,227.13,226.97,30.0]
[1738157530664,20.54246389,227.11,227.01,20.54246389]
[1738157530845,20.54246389,227.11,226.94,3.4]
[1738157530846,20.54246389,227.11,227.03,20.54246389]
[1738157531045,20.54246389,227.13,227.05,20.54246389]
[1738157531340,20.0,227.1,227.05,20.54246389]
[1738157531540,20.54246389,227.14,227.07,20.54246389]
[1738157531768,6.5782,227.17,227.09,20.54246389]
[1738157532062,6.5782,227.17,227.11,20.54246389]
[1738157533070,0.12549,227.16,227.09,20.54246389]
[1738157533369,0.12549,227.12,227.07,20.54246389]
[1738157533768,0.12549,227.12,227.09,20.54246389]
[1738157533959,20.54246389,227.22,227.11,20.54246389]
[1738157534169,20.0,227.19,227.14,20.54246389]
[1738157534576,0.12549,227.18,227.14,20.54246389]
[1738157534957,0.12549,227.18,227.12,20.54246389]
[1738157535373,20.0,227.18,227.12,20.54246389]
[1738157535586,20.54246389,227.21,227.12,20.54246389]
[1738157535774,0.12549,227.2,227.12,20.54246389]
[1738157536659,20.54246389,227.17,227.1,20.54246389]
[1738157536858,0.12549,227.16,227.1,20.54246389]
[1738157538157,0.12549,227.16,227.08,20.54246389]
[1738157538158,0.25098,227.16,227.08,20.54246389]
[1738157539287,20.0,227.14,227.08,20.54246389]
[1738157539593,0.12549,227.11,227.06,20.54246389]
[1738157540078,0.12549,227.12,227.06,20.54246389]
[1738157540280,0.12549,227.12,227.1,20.54246389]
[1738157540484,6.2134,227.16,227.1,20.54246389]
[1738157540979,0.03,227.16,227.12,20.54246389]
[1738157541186,0.03,227.16,227.14,20.54246389]
[1738157546299,0.03,227.16,227.15,44.44483789]
[1738157547370,0.03,227.16,227.15,24.94476389]
[1738157547590,0.03,227.16,227.15,4.4023]
[1738157547972,0.03,227.16,227.15,24.94476389]
[1738157549281,0.03,227.16,227.15,4.4023]
[1738157550267,0.03,227.16,227.15,24.94476389]
[1738157550482,0.03,227.16,227.14,22.07506389]
[1738157550866,0.03,227.16,227.14,26.47756389]
[1738157551069,0.03,227.16,227.14,22.07506389]
[1738157551263,0.03,227.16,227.14,20.54246389]
[1738157552895,0.03,227.16,227.1,20.54246389]
[1738157553469,0.12549,227.15,227.1,20.54246389]
[1738157554173,0.03,227.16,227.12,20.54246389]
[1738157555267,0.03,227.16,227.1,20.54246389]
[1738157555893,0.12549,227.15,227.1,20.54246389]
[1738157556074,20.79344389,227.15,227.07,20.54246389]
[1738157556785,20.12549,227.14,227.09,20.54246389]
[1738157557176,20.12549,227.14,227.07,20.54246389]
[1738157557488,20.12549,227.14,227.09,20.54246389]
[1738157557875,0.25098,227.13,227.07,20.54246389]
[1738157558074,0.25098,227.13,227.05,20.54246389]
[1738157558894,0.12549,227.12,227.05,20.54246389]
[1738157559881,0.12549,227.1,227.03,20.54246389]
[1738157560463,0.25098,227.1,227.03,20.54246389]
[1738157560889,0.25098,227.1,227.01,20.54246389]
[1738157560890,0.12549,227.05,227.01,20.54246389]
[1738157563191,26.81955389,227.11,227.03,20.54246389]
[1738157563395,26.81955389,227.11,227.05,20.54246389]
[1738157563692,0.25098,227.1,227.05,20.54246389]
[1738157564191,0.12549,227.1,227.05,20.54246389]
[1738157564976,0.12549,227.12,227.07,20.54246389]
[1738157566093,0.25098,227.1,227.03,20.54246389]
[1738157566983,0.25098,227.08,227.03,20.54246389]
[1738157567294,0.12549,227.08,227.03,20.54246389]
[1738157567489,0.25098,227.1,227.03,20.54246389]
[1738157568596,20.0,227.08,227.03,20.54246389]
[1738157568906,0.25098,227.1,227.01,20.54246389]
[1738157568907,0.12549,227.05,227.01,20.54246389]
[1738157570295,0.25098,227.08,227.03,20.54246389]
[1738157570505,0.25098,227.04,226.95,20.54246389]
[1738157570797,0.12549,227.0,226.93,22.16876389]
[1738157571184,20.54246389,227.03,226.95,20.54246389]
[1738157571511,0.25098,227.04,226.97,20.54246389]
[1738157571696,0.25098,227.04,226.95,20.54246389]
[1738157572598,13.06805538,227.04,226.96,12.81707538]
[1738157574596,20.75807234,227.04,226.96,20.50709234]
[1738157574798,0.37647,227.0,226.93,0.063]
[1738157574975,0.12549,226.97,226.93,0.063]
[1738157575614,0.37647,226.97,226.93,0.063]
[1738157575815,0.37647,226.94,226.93,0.063]
[1738157575976,0.12549,226.9,226.82,20.50709234]
[1738157576175,20.75807234,226.9,226.81,0.063]
[1738157576398,0.25098,226.88,226.81,0.063]
[1738157576995,0.25098,226.88,226.82,20.50709234]
[1738157577294,20.75807234,226.88,226.81,0.063]
[1738157578289,0.25098,226.88,226.82,20.50709234]
[1738157579200,0.12549,226.88,226.82,20.50709234]
[1738157580195,0.12549,226.88,226.81,4.4718]
[1738157580196,20.50709234,226.92,226.84,20.50709234]
[1738157580581,26.72769234,226.94,226.86,20.50709234]
[1738157580996,0.37647,226.93,226.86,20.50709234]
[1738157581213,0.12549,226.93,226.86,20.50709234]
[1738157581416,26.51429234,227.0,226.92,20.50709234]
[1738157582093,0.12549,226.99,226.92,20.50709234]
[1738157582408,0.25098,226.97,226.9,20.50709234]
[1738157582902,0.12549,226.97,226.9,20.50709234]
[1738157583290,6.0072,227.0,226.92,20.50709234]
[1738157583291,0.25098,226.99,226.92,20.50709234]
[1738157583610,20.50709234,226.98,226.9,20.50709234]
[1738157583989,0.25098,226.99,226.9,20.50709234]
[1738157584190,20.50709234,226.98,226.9,20.50709234]
[1738157584591,0.12549,226.97,226.9,20.50709234]
[1738157586614,0.37647,226.99,226.9,20.50709234]
[1738157586815,0.37647,226.99,226.92,20.50709234]
[1738157586816,0.25098,226.99,226.92,20.50709234]
[1738157587392,0.25098,226.99,226.9,20.50709234]
[1738157587608,20.50709234,226.98,226.9,20.50709234]
[1738157587796,0.12549,226.97,226.9,20.50709234]
[1738157588113,0.25098,226.97,226.9,20.50709234]
[1738157588492,0.12549,226.97,226.9,20.50709234]
[1738157589521,0.12549,226.98,226.9,20.50709234]
[1738157589697,0.12549,226.98,226.9,24.91419234]
[1738157590313,0.12549,226.98,226.92,20.50709234]
[1738157590692,0.25098,226.98,226.92,20.50709234]
[1738157591930,0.12549,226.98,226.92,24.91389234]
[1738157592494,0.03,226.99,226.96,20.50709234]
[1738157592711,0.03,226.99,226.96,24.91309234]
[1738157592913,0.03,226.99,226.98,20.50709234]
[1738157593498,0.03,226.99,226.96,20.50709234]
[1738157593896,0.03,226.99,226.98,20.50709234]
[1738157595204,0.03,226.99,226.96,20.50709234]
[1738157596415,0.03,226.99,226.98,20.50709234]
[1738157596624,0.03,226.99,226.98,12.81284634]
[1738157597825,0.03,226.99,226.98,17.21844634]
[1738157598424,0.03,226.99,226.98,43.01570076]
[1738157598931,0.03,227.1,226.98,43.01570076]
[1738157598932,0.03,227.1,227.02,20.0]
[1738157599130,0.03,227.1,227.09,12.81284634]
[1738157601199,0.03,227.1,227.09,14.38934634]
[1738157601925,0.03,227.1,227.09,38.29172034]
[1738157602123,0.03,227.1,227.09,42.69522034]
[1738157602817,0.03,227.1,227.09,42.56973034]
[1738157603818,0.03,227.1,227.09,43.00989887]
[1738157604233,0.03,227.1,227.09,74.38636887]
[1738157604527,0.03,227.16,227.15,49.52806668]
[1738157604931,0.03,227.16,227.15,50.09360482]
[1738157605429,0.03,227.22,227.19,43.776884]
[1738157605605,0.03,227.22,227.21,36.58973034]
[1738157606019,0.03,227.22,227.21,36.71522034]
[1738157606403,0.03,227.22,227.21,41.11642034]
[1738157609426,0.03,227.22,227.21,17.21404634]
[1738157609806,0.03,227.22,227.21,12.81284634]
[1738157610825,0.03,227.22,227.21,17.21404634]
[1738157612523,13.57163809,227.23,227.21,17.21404634]
[1738157612719,0.03,227.33,227.3,20.0]
[1738157612920,0.03,227.39,227.33,24.027864]
[1738157613224,0.03,227.39,227.38,12.81284634]
[1738157614524,0.03,227.39,227.38,20.4279508]
[1738157618734,0.03,227.39,227.36,20.4279508]
[1738157619111,0.03,227.39,227.38,20.4279508]
[1738157620507,0.03,227.45,227.41,20.0]
[1738157620707,0.03,227.45,227.44,20.4279508]
[1738157621733,0.03,227.45,227.42,20.4279508]
[1738157621915,0.03,227.45,227.38,23.776884]
[1738157621916,0.03,227.45,227.43,20.4279508]
[1738157622926,0.03,227.45,227.39,20.4279508]
[1738157623117,0.12549,227.44,227.37,20.4279508]
[1738157623515,0.03,227.39,227.37,20.4279508]
[1738157625119,0.03,227.39,227.38,28.61451734]
[1738157626354,0.03,227.39,227.38,4.3979]
[1738157626816,0.03,227.39,227.37,24.8259508]
[1738157628358,0.03,227.39,227.37,20.4279508]
[1738157628555,0.03,227.39,227.35,20.4279508]
[1738157628857,0.03,227.39,227.37,20.4279508]
[1738157629749,0.12549,227.44,227.37,20.4279508]
[1738157630254,19.6134408,227.45,227.37,20.4279508]
[1738157632455,25.9962408,227.45,227.37,20.4279508]
[1738157633025,25.9962408,227.45,227.33,0.063]
[1738157633026,0.25098,227.42,227.35,20.4279508]
[1738157633230,20.4279508,227.41,227.33,20.4909508]
[1738157633941,0.12549,227.4,227.33,20.4909508]
[1738157634162,0.12549,227.4,227.33,0.063]
[1738157634163,0.25098,227.38,227.33,0.063]
[1738157634343,0.12549,227.36,227.33,0.063]
[1738157635051,0.12549,227.37,227.33,0.063]
[1738157635935,20.4279508,227.41,227.37,0.063]
[1738157636949,0.25098,227.4,227.37,0.063]
[1738157638549,20.4279508,227.43,227.37,0.063]
[1738157638739,26.8107508,227.45,227.37,0.063]
[1738157639076,0.12549,227.41,227.37,0.063]
[1738157639731,20.4279508,227.39,227.37,0.063]
[1738157640142,20.6789308,227.41,227.37,0.063]
[1738157642546,13.02651741,227.41,227.37,0.063]
[1738157643055,12.77553741,227.39,227.37,0.063]
[1738157644643,0.12549,227.38,227.37,0.063]
[1738157645556,0.37647,227.38,227.37,0.063]
[1738157645936,24.153354,227.38,227.33,0.063]
[1738157646148,0.25098,227.34,227.33,0.063]
[1738157646760,24.153354,227.34,227.33,0.063]
[1738157647256,31.400754,227.34,227.33,0.063]
[1738157647556,0.25098,227.3,227.21,12.77553741]
[1738157647758,20.0,227.31,227.19,12.77553741]
[1738157647759,0.25098,227.25,227.19,12.77553741]
[1738157647941,13.02651741,227.25,227.17,12.77553741]
[1738157648435,0.12549,227.24,227.17,12.77553741]
[1738157648635,0.12549,227.24,227.16,1.5784]
[1738157648943,13.02651741,227.25,227.16,4.4021]
[1738157649162,13.02651741,227.25,227.15,12.77553741]
[1738157649653,13.02651741,227.25,227.17,12.77553741]
[1738157650754,13.02651741,227.25,227.17,17.17743741]
[1738157651362,12.77553741,227.25,227.17,17.17743741]
[1738157651534,12.77553741,227.29,227.21,12.77553741]
[1738157651855,12.77553741,227.31,227.23,12.77553741]
[1738157652155,95.27553741,227.35,227.27,12.77553741]
[1738157652349,12.77553741,227.37,227.29,12.77553741]
[1738157652538,20.0,227.34,227.29,12.77553741]
[1738157652738,12.77553741,227.37,227.29,17.17503741]
[1738157652942,12.77553741,227.39,227.31,12.77553741]
[1738157653139,0.50196,227.38,227.31,12.77553741]
[1738157653645,0.12549,227.36,227.29,17.17503741]
[1738157653852,0.25098,227.36,227.29,12.77553741]
[1738157655054,21.0,227.42,227.25,23.776884]
[1738157655253,12.77553741,227.38,227.3,12.77553741]
[1738157655557,12.77553741,227.4,227.32,12.77553741]
[1738157655934,0.25098,227.43,227.3,12.77553741]
[1738157655935,12.77553741,227.38,227.3,12.77553741]
[1738157656335,12.77553741,227.4,227.32,12.77553741]
[1738157657462,12.77553741,227.4,227.32,17.17443741]
[1738157658257,12.77553741,227.42,227.34,12.77553741]
[1738157659453,0.03,227.45,227.38,12.77553741]
[1738157659666,0.28098,227.45,227.38,12.77553741]
[1738157660143,0.03,227.45,227.38,12.77553741]
[1738157662141,12.77553741,227.42,227.34,12.77553741]
[1738157662361,12.77553741,227.41,227.33,12.77553741]
[1738157662560,12.77553741,227.39,227.32,1.6346]
[1738157662772,12.77553741,227.39,227.31,12.77553741]
[1738157662968,12.77553741,227.39,227.32,4.399]
[1738157663264,12.77553741,227.41,227.33,12.77553741]
[1738157664841,0.25098,227.43,227.33,12.77553741]
[1738157664842,13.02651741,227.43,227.35,12.77553741]
[1738157665071,12.80553741,227.45,227.37,12.77553741]
[1738157665557,0.03,227.45,227.37,12.77553741]
[1738157666154,0.03,227.45,227.38,23.776884]
[1738157666353,0.03,227.45,227.39,12.77553741]
[1738157667063,0.03,227.45,227.41,12.77553741]
[1738157667244,0.03,227.45,227.43,12.77553741]
[1738157667457,0.03,227.45,227.44,23.776884]
[1738157668061,0.03,227.45,227.43,12.77553741]
[1738157668861,0.03,227.45,227.43,23.776884]
[1738157669038,0.03,227.45,227.42,4.3971]
[1738157669880,0.03,227.45,227.42,20.0]
[1738157670557,0.03,227.45,227.43,23.776884]
[1738157670944,0.03,227.45,227.44,20.0]
[1738157671147,0.03,227.45,227.44,56.55242141]
[1738157672367,0.03,227.45,227.44,62.49552141]
[1738157672949,0.03,227.45,227.44,38.71863741]
[1738157673150,0.03,227.45,227.44,34.32193741]
[1738157673940,0.11660351,227.53,227.44,34.32193741]
[1738157674169,12.77553741,227.54,227.46,32.77553741]
[1738157675264,12.77553741,227.52,227.45,20.0]
[1738157675470,12.77553741,227.54,227.46,32.77553741]
[1738157677647,0.50196,227.57,227.44,14.32193741]
[1738157677648,12.77553741,227.52,227.44,14.32193741]
[1738157679066,0.25098,227.51,227.44,14.32193741]
[1738157680585,12.77553741,227.46,227.39,1.5613]
[1738157680955,12.77553741,227.46,227.36,12.77553741]
[1738157681163,0.12549,227.44,227.36,12.77553741]
[1738157681367,0.25098,227.43,227.36,12.77553741]
[1738157681559,0.25098,227.43,227.34,1.5779]
[1738157681759,0.25098,227.41,227.34,14.35343741]
[1738157682163,12.77553741,227.42,227.34,18.75203741]
[1738157682359,12.77553741,227.46,227.38,12.77553741]
[1738157683176,0.25098,227.45,227.38,12.77553741]
[1738157683474,12.77553741,227.42,227.34,12.77553741]
[1738157684358,0.12549,227.43,227.36,12.77553741]
[1738157684551,0.25098,227.44,227.38,12.77553741]
[1738157684947,12.77553741,227.48,227.4,12.77553741]
[1738157685270,12.77553741,227.52,227.44,12.77553741]
[1738157685576,0.15549,227.51,227.44,12.77553741]
[1738157686274,0.15549,227.51,227.46,12.77553741]
[1738157686850,0.25098,227.5,227.44,12.77553741]
[1738157687250,0.28098,227.51,227.44,12.77553741]
[1738157687473,0.32647,227.49,227.42,12.77553741]
[1738157687675,12.77553741,227.48,227.4,14.34303741]
[1738157687850,0.12549,227.47,227.4,14.34303741]
[1738157688056,12.77553741,227.46,227.38,12.77553741]
[1738157688459,0.12549,227.45,227.38,12.77553741]
[1738157688981,0.12549,227.45,227.36,12.77553741]
[1738157690879,12.77553741,227.44,227.36,12.77553741]
[1738157691088,12.90102741,227.42,227.34,1.5202]
[1738157691270,12.90102741,227.42,227.33,52.26]
[1738157691676,12.90102741,227.42,227.34,12.77553741]
[1738157694189,12.90102741,227.42,227.34,12.83853741]
[1738157694986,12.77553741,227.41,227.34,12.83853741]
[1738157695179,12.77553741,227.41,227.34,0.063]
[1738157695380,12.77553741,227.41,227.34,12.83853741]
[1738157696572,12.77553741,227.41,227.34,0.063]
[1738157696764,12.90102741,227.4,227.34,0.063]
[1738157697986,0.12549,227.4,227.34,0.063]
[1738157698182,0.03,227.45,227.34,0.063]
[1738157698183,12.77553741,227.42,227.34,17.23713741]
[1738157698375,12.77553741,227.43,227.36,12.77553741]
[1738157698967,12.77553741,227.43,227.35,12.77553741]
[1738157701896,0.12549,227.42,227.34,12.83853741]
[1738157702587,0.12549,227.42,227.36,12.77553741]
[1738157703003,0.37647,227.42,227.36,12.77553741]
[1738157703202,0.37647,227.42,227.34,0.063]
[1738157703408,12.77553741,227.41,227.34,0.063]
[1738157703977,0.3,227.4,227.34,0.063]
[1738157706696,0.3,227.4,227.35,12.77553741]
[1738157709178,0.3,227.4,227.34,0.063]
[1738157710901,0.37647,227.39,227.34,0.063]
[1738157711085,12.77553741,227.36,227.34,0.063]
[1738157711396,0.12549,227.35,227.34,0.063]
[1738157712200,0.37647,227.35,227.34,0.063]
[1738157712404,0.12549,227.35,227.34,0.063]
[1738157712699,12.77553741,227.36,227.34,0.063]
[1738157712904,95.27553741,227.38,227.34,0.063]
[1738157713198,0.12549,227.37,227.34,0.063]
[1738157713893,82.5,227.38,227.34,0.063]
[1738157714290,82.5,227.38,227.34,23.839884]
[1738157714488,13.45200741,227.4,227.34,23.839884]
[1738157714685,0.3,227.4,227.36,23.776884]
[1738157717698,0.3,227.4,227.34,0.063]
[1738157717699,12.77553741,227.38,227.34,0.063]
[1738157717905,0.12549,227.37,227.34,0.063]
[1738157718496,0.50196,227.35,227.34,0.063]
[1738157719398,12.77553741,227.36,227.34,0.063]
[1738157720493,0.50196,227.35,227.34,0.063]